bitfinex/quotes_BTCUSD_20220105
["timestamp","ask_amount","ask_price","bid_price","bid_amount"]
[1641413806219,0.00376524,44389.0,44388.0,3.84484356]
[1641413806421,0.013425,44398.0,44397.0,0.0012022]
[1641413806618,0.013425,44398.0,44397.0,4.34308387]
[1641413806821,0.013425,44398.0,44397.0,4.39308387]
[1641413807018,0.013425,44398.0,44397.0,4.78379906]
[1641413807218,0.013425,44398.0,44397.0,5.35312445]
[1641413807419,0.013425,44398.0,44397.0,2.49080376]
[1641413807618,0.013425,44398.0,44397.0,2.43451676]
[1641413807872,0.013425,44398.0,44397.0,2.98652495]
[1641413808267,0.004,44399.0,44397.0,2.98652495]
[1641413808474,0.004,44409.0,44399.0,2.024]
[1641413808475,3.26544,44400.0,44399.0,2.024]
[1641413808671,2.815225,44400.0,44399.0,2.37520296]
[1641413808868,2.815225,44400.0,44399.0,2.77871181]
[1641413809072,2.815225,44400.0,44399.0,2.77117387]
[1641413809771,2.815225,44400.0,44399.0,1.98655387]
[1641413810173,2.815225,44400.0,44399.0,2.17388639]
[1641413810380,2.815225,44400.0,44399.0,2.02268343]
[1641413810574,3.182383,44400.0,44399.0,0.86568343]
[1641413810876,0.00129569,44405.0,44399.0,0.52568343]
[1641413811079,0.11501674,44404.0,44399.0,0.52568343]
[1641413811720,0.11501674,44404.0,44391.0,0.0134247]
[1641413812120,0.36715,44403.0,44391.0,0.0134247]
[1641413812316,0.53982484,44396.0,44391.0,4.7e-06]
[1641413812520,0.36715,44392.0,44391.0,4.7e-06]
[1641413812719,0.05,44392.0,44391.0,4.7e-06]
[1641413812925,0.46715,44392.0,44372.0,0.00126521]
[1641413813119,0.46715,44392.0,44371.0,0.004]
[1641413813120,0.10122937,44388.0,44371.0,0.004]
[1641413813318,0.00120662,44382.0,44371.0,0.004]
[1641413813517,0.5237876,44380.0,44371.0,0.004]
[1641413813820,0.112715,44376.0,44371.0,0.004]
[1641413814018,0.112716,44376.0,44371.0,0.004]
[1641413814217,0.162716,44376.0,44371.0,0.0001]
[1641413814419,0.12393528,44379.0,44371.0,0.0001]
[1641413814619,0.00120662,44382.0,44371.0,0.0001]
[1641413814620,0.36715,44378.0,44371.0,0.0001]
[1641413815020,0.05634486,44377.0,44371.0,0.0001]
[1641413815477,0.11389662,44382.0,44371.0,0.0001]
[1641413815478,0.1669024,44380.0,44371.0,0.0001]
[1641413815873,0.27959697,44380.0,44371.0,0.0001]
[1641413816074,0.056355,44376.0,44371.0,0.0001]
[1641413816274,0.36715,44375.0,44371.0,0.0001]
[1641413816473,0.36715,44375.0,44369.0,7.2e-06]
[1641413816675,0.36526616,44374.0,44352.0,0.00022]
[1641413816876,0.36526616,44374.0,44351.0,0.00011]
[1641413816877,0.00120626,44354.0,44351.0,0.00011]
[1641413817079,0.22733881,44353.0,44351.0,0.00011]
[1641413817475,0.22733881,44353.0,44350.0,0.56360417]
[1641413817476,0.76596449,44353.0,44350.0,0.56360417]
[1641413817680,0.76596449,44353.0,44341.0,0.00422]
[1641413817681,2.25,44347.0,44341.0,0.00422]
[1641413817875,2.25,44347.0,44341.0,0.00011]
[1641413817876,0.36715,44346.0,44341.0,0.00011]
[1641413818078,0.22290167,44346.0,44341.0,0.31542879]
[1641413818275,0.22290167,44346.0,44342.0,0.36715]
[1641413818577,0.22290167,44346.0,44340.0,0.05033]
[1641413818578,2.25,44351.0,44340.0,0.05033]
[1641413818776,0.36715,44350.0,44340.0,0.05006029]
[1641413818974,0.00124348,44347.0,44340.0,0.05006029]
[1641413819221,0.05638221,44344.0,44340.0,0.05006029]
[1641413819725,0.42,44352.0,44340.0,0.05006029]
[1641413819920,0.45960112,44351.0,44340.0,0.05006029]
[1641413820120,0.19655643,44351.0,44340.0,0.05006029]
[1641413820320,0.00121608,44341.0,44340.0,0.05006029]
[1641413820519,2.31934423,44341.0,44340.0,0.05006029]
[1641413820723,2.68649423,44341.0,44340.0,0.05006029]
[1641413821026,2.25,44339.0,44334.0,1.99934]
[1641413821219,2.25,44339.0,44334.0,0.01276668]
[1641413821220,2.25,44337.0,44334.0,0.01276668]
[1641413821429,2.25,44337.0,44322.0,0.00011]
[1641413821430,2.306417,44331.0,44322.0,0.00011]
[1641413821624,2.306417,44331.0,44307.0,0.00033]
[1641413821625,2.78495497,44326.0,44307.0,0.00033]
[1641413821822,2.356871,44321.0,44307.0,0.00033]
[1641413822020,1.34277624,44325.0,44307.0,0.00033]
[1641413822021,0.00129569,44317.0,44307.0,0.00033]
[1641413822220,0.36704,44316.0,44307.0,0.00033]
[1641413822425,0.0564351,44315.0,44307.0,0.00033]
[1641413823071,0.00129569,44317.0,44311.0,0.23542407]
[1641413823275,0.00129569,44317.0,44310.0,0.00011]
[1641413823469,0.05642274,44314.0,44310.0,0.00011]
[1641413823670,0.05642274,44314.0,44309.0,0.00022]
[1641413823671,0.00123511,44311.0,44309.0,0.00022]
[1641413823873,0.00129569,44317.0,44309.0,0.00022]
[1641413824071,0.26151624,44332.0,44309.0,0.00011]
[1641413824272,0.00122085,44329.0,44310.0,1.157]
[1641413824472,0.00122085,44329.0,44314.0,0.24749007]
[1641413824672,0.00122085,44329.0,44323.0,0.33559899]
[1641413824872,0.00122085,44329.0,44314.0,0.24749007]
[1641413825073,0.00122085,44329.0,44313.0,0.1]
[1641413825272,0.001274,44324.0,44313.0,0.1]
[1641413825473,0.001274,44324.0,44309.0,0.00137341]
[1641413825474,0.00129519,44317.0,44309.0,0.00137341]
[1641413825675,0.00129519,44317.0,44309.0,0.00011]
[1641413826075,0.36732,44316.0,44309.0,0.00011]
[1641413826276,0.023,44313.0,44310.0,0.71307837]
[1641413826475,0.00122864,44311.0,44309.0,0.00011]
[1641413826921,0.023,44313.0,44309.0,0.00011]
[1641413827521,0.023,44313.0,44312.0,1.48057269]
[1641413827723,0.023,44313.0,44312.0,1.84788969]
[1641413827922,0.13400252,44335.0,44312.0,3.14788969]
[1641413828126,0.3052,44337.0,44313.0,0.27104666]
[1641413828325,0.00127524,44336.0,44318.0,0.00123768]
[1641413828534,0.00127524,44336.0,44326.0,0.056383]
[1641413828724,0.70115582,44345.0,44335.0,0.28025797]
[1641413828921,0.70115582,44345.0,44327.0,0.54406178]
[1641413828922,0.70115582,44345.0,44327.0,0.056381]
[1641413829122,0.70115582,44345.0,44322.0,0.191146]
[1641413829123,0.70115582,44345.0,44330.0,0.00128217]
[1641413829322,0.367317,44344.0,44323.0,0.26123498]
[1641413829524,0.00128855,44346.0,44318.0,0.26000866]
[1641413829723,0.05640613,44327.0,44321.0,0.25595783]
[1641413829929,0.05640613,44327.0,44325.0,0.00026129]
[1641413830386,2.25,44328.0,44314.0,1.04559535]
[1641413830584,2.25,44328.0,44313.0,1.04559535]
[1641413830782,0.05,44327.0,44313.0,1.30993471]
[1641413831087,2.3,44328.0,44313.0,1.30993471]
[1641413831088,0.05642162,44321.0,44313.0,1.59817098]
[1641413831282,0.05642162,44321.0,44313.0,1.04559535]
[1641413831485,0.10642162,44321.0,44310.0,0.00312325]
[1641413831684,0.11284323,44322.0,44310.0,0.00312325]
[1641413831883,0.05641502,44319.0,44311.0,0.367317]
[1641413832191,0.19446637,44336.0,44312.0,1.15827511]
[1641413832384,0.19446637,44336.0,44317.0,0.50821124]
[1641413832385,0.001269,44336.0,44317.0,0.50821124]
[1641413832684,1.53442128,44341.0,44321.0,0.251834]
[1641413832685,0.00121329,44330.0,44321.0,0.251834]
[1641413832886,0.92682128,44341.0,44322.0,0.9673932]
[1641413832887,0.05639632,44334.0,44322.0,0.9673932]
[1641413833086,0.70115582,44341.0,44323.0,1.46806261]
[1641413833087,0.00123929,44338.0,44323.0,1.46806261]
[1641413833286,0.70115582,44341.0,44323.0,1.66806261]
[1641413833487,0.11277207,44347.0,44323.0,1.66806261]
[1641413833488,0.81392789,44347.0,44324.0,0.567317]
[1641413833692,0.81392789,44347.0,44333.0,0.27859885]
[1641413833885,0.81392789,44347.0,44333.0,0.56251914]
[1641413834126,0.81392789,44347.0,44333.0,0.28392029]
[1641413834323,0.00124225,44346.0,44333.0,0.28392029]
[1641413834520,0.05638777,44342.0,44335.0,0.56266044]
[1641413834721,0.05638777,44342.0,44333.0,0.28392029]
[1641413834722,0.05638777,44342.0,44336.0,0.367317]
[1641413834920,0.05638777,44342.0,44333.0,0.28392029]
[1641413834921,0.05600747,44342.0,44333.0,0.28392029]
[1641413835122,0.00124225,44346.0,44334.0,0.367317]
[1641413835327,0.00124225,44346.0,44345.0,0.00125351]
[1641413835523,0.00124225,44346.0,44345.0,2.85722343]
[1641413835723,4.225e-05,44346.0,44345.0,0.423678]
[1641413835923,4.225e-05,44346.0,44345.0,0.367317]
[1641413836121,4.225e-05,44346.0,44345.0,0.467317]
[1641413836327,4.225e-05,44346.0,44345.0,1.624317]
[1641413836524,4.225e-05,44346.0,44345.0,0.367317]
[1641413836725,4.225e-05,44346.0,44328.0,0.0012589]
[1641413836925,4.225e-05,44346.0,44330.0,0.42]
[1641413837125,4.225e-05,44346.0,44331.0,0.010857]
[1641413837325,0.00131872,44346.0,44331.0,0.010857]
[1641413837622,0.00257431,44346.0,44331.0,0.010857]
[1641413837879,0.00257431,44346.0,44336.0,0.34171558]
[1641413838081,0.00257431,44346.0,44337.0,0.367248]
[1641413838282,0.00257431,44346.0,44316.0,0.112778]
[1641413838483,0.00129784,44346.0,44329.0,0.367317]
[1641413838680,0.05638718,44344.0,44329.0,0.467317]
[1641413838885,0.00129784,44346.0,44329.0,0.467317]
[1641413839082,0.00129784,44346.0,44334.0,0.00120704]
[1641413839280,0.00129784,44346.0,44335.0,0.010855]
[1641413839483,0.00014103,44354.0,44336.0,1.61]
[1641413839680,0.004,44359.0,44338.0,1.157]
[1641413839881,0.0563737,44355.0,44349.0,0.29406874]
[1641413840084,0.24521552,44368.0,44350.0,1.75]
[1641413840284,0.004,44369.0,44352.0,0.00129044]
[1641413840584,0.004,44369.0,44351.0,0.58238132]
[1641413840780,0.11681831,44368.0,44351.0,0.58238132]
[1641413840982,0.116738,44369.0,44351.0,0.83153677]
[1641413841179,0.166738,44369.0,44351.0,0.83153677]
[1641413841381,0.116738,44369.0,44355.0,0.3121284]
[1641413841630,0.116738,44369.0,44358.0,0.60586445]
[1641413841820,0.004,44369.0,44358.0,0.60586445]
[1641413842021,0.004,44369.0,44360.0,0.00120762]
[1641413842218,0.004,44369.0,44365.0,0.00129816]
[1641413842419,0.004,44369.0,44368.0,2.260555]
[1641413842622,0.004,44369.0,44368.0,3.417555]
[1641413842824,0.70115582,44391.0,44379.0,1.87]
[1641413843021,0.70115582,44391.0,44380.0,0.32063188]
[1641413843221,0.70115582,44391.0,44380.0,0.010549]
[1641413843420,0.004,44399.0,44378.0,0.0012699]
[1641413843618,0.26564931,44399.0,44379.0,0.367317]
[1641413843819,0.05633052,44388.0,44378.0,0.0012699]
[1641413844020,0.27397302,44387.0,44362.0,0.05634]
[1641413844232,0.27397302,44387.0,44358.0,0.1]
[1641413844233,0.32590095,44387.0,44365.0,0.00128174]
[1641413844420,0.32590095,44387.0,44355.0,0.27838]
[1641413844421,0.97582799,44386.0,44351.0,1.157]
[1641413844619,0.97582799,44386.0,44356.0,0.0012059]
[1641413844822,0.2957027,44374.0,44356.0,0.0012059]
[1641413845022,0.05636,44372.0,44362.0,0.3450565]
[1641413845222,0.05636,44372.0,44356.0,0.0012059]
[1641413845775,0.05636,44372.0,44349.0,0.00315413]
[1641413845776,0.71147743,44371.0,44349.0,0.00315413]
[1641413845973,0.056379,44361.0,44349.0,0.00315413]
[1641413846273,2.25,44359.0,44346.0,0.26929492]
[1641413846473,2.25,44359.0,44351.0,1.197113]
[1641413846474,0.367317,44358.0,44351.0,1.197113]
[1641413846672,0.63742957,44358.0,44351.0,3e-06]
[1641413846877,0.367317,44354.0,44351.0,3e-06]
[1641413847071,0.423704,44352.0,44351.0,3e-06]
[1641413847272,0.406004,44352.0,44351.0,3e-06]
[1641413847873,0.367317,44352.0,44351.0,3e-06]
[1641413848074,0.1209518,44361.0,44352.0,2.63669478]
[1641413848278,0.1209518,44361.0,44359.0,0.48579866]
[1641413848474,0.15917448,44368.0,44360.0,0.36847801]
[1641413848677,0.15917448,44368.0,44360.0,0.00124401]
[1641413848877,0.15917448,44368.0,44351.0,0.38679179]
[1641413849128,0.15917448,44368.0,44351.0,3e-06]
[1641413849129,0.056373,44363.0,44351.0,3e-06]
[1641413849324,0.67394953,44362.0,44351.0,3e-06]
[1641413849533,0.05637528,44357.0,44351.0,3e-06]
[1641413849825,0.367317,44353.0,44351.0,3e-06]
[1641413850024,0.367317,44353.0,44350.0,1.18746536]
[1641413850025,0.2712361,44352.0,44350.0,1.08756836]
[1641413850225,1.88756,44350.0,44339.0,0.01342666]
[1641413850429,0.00120321,44332.0,44331.0,1.47374812]
[1641413850725,2.49061468,44332.0,44331.0,0.48876401]
[1641413850926,2.49061468,44332.0,44311.0,0.00422]
[1641413850927,2.90793168,44332.0,44330.0,4.01e-06]
[1641413851126,0.16926343,44329.0,44311.0,0.00422]
[1641413851327,0.36487403,44325.0,44311.0,0.00422]
[1641413851525,2.25,44323.0,44309.0,0.00022]
[1641413851726,0.056441,44315.0,44308.0,1.90318379]
[1641413851928,0.056441,44315.0,44301.0,0.004]
[1641413851929,0.367304,44311.0,44301.0,0.004]
[1641413852134,0.367304,44311.0,44282.0,0.00022]
[1641413852135,1.72280026,44304.0,44282.0,0.00022]
[1641413852325,1.72280026,44304.0,44291.0,0.004]
[1641413852326,0.06429868,44300.0,44291.0,0.004]
[1641413852527,0.367194,44299.0,44295.0,0.00011]
[1641413852870,0.056459,44296.0,44295.0,0.00011]
[1641413853071,0.62891167,44296.0,44293.0,0.00011]
[1641413853269,0.367235,44294.0,44293.0,0.00011]
[1641413853671,0.367235,44294.0,44291.0,0.004]
[1641413853672,0.056348,44293.0,44291.0,0.004]
[1641413853871,0.367345,44292.0,44291.0,0.004]
[1641413854275,0.367235,44292.0,44291.0,0.004]
[1641413854677,0.367356,44293.0,44291.0,0.004]
[1641413854874,0.0564527,44292.0,44291.0,0.004]
[1641413855072,0.11290539,44293.0,44291.0,0.004]
[1641413855276,0.367356,44292.0,44291.0,0.004]
[1641413855474,0.367246,44292.0,44291.0,0.004]
[1641413855676,0.11290539,44293.0,44291.0,0.004]
[1641413855879,0.67703,44310.0,44292.0,0.00011]
[1641413856177,0.24994492,44318.0,44300.0,1.15820625]
[1641413856374,0.22039771,44320.0,44300.0,1.15820625]
[1641413856375,0.24994492,44320.0,44300.0,1.15820625]
[1641413856647,0.42,44318.0,44300.0,0.00120625]
[1641413856838,0.42,44318.0,44305.0,0.29568028]
[1641413856839,0.423781,44317.0,44305.0,0.29568028]
[1641413857037,0.005745,44312.0,44296.0,0.24994492]
[1641413857241,0.005745,44312.0,44292.0,0.0013176]
[1641413857242,0.56635539,44315.0,44294.0,0.6658332]
[1641413857438,0.13352682,44311.0,44294.0,0.6658332]
[1641413857638,0.13352682,44311.0,44304.0,0.23787464]
[1641413858238,0.13352682,44311.0,44297.0,0.0012357]
[1641413858442,0.11287829,44306.0,44296.0,0.34062143]
[1641413858642,0.056445,44304.0,44292.0,0.00011]
[1641413858843,0.36732,44303.0,44291.0,0.00302]
[1641413859040,0.16673961,44303.0,44291.0,0.00302]
[1641413859244,0.26618427,44310.0,44291.0,0.00302]
[1641413859442,0.056437,44308.0,44291.0,0.00302]
[1641413859641,0.106437,44308.0,44295.0,0.44625713]
[1641413859846,0.056437,44308.0,44299.0,0.27056161]
[1641413860048,0.16541028,44313.0,44299.0,0.27056161]
[1641413860242,0.42,44318.0,44299.0,0.32046161]
[1641413860472,0.68228163,44318.0,44302.0,0.53295643]
[1641413860671,0.42,44318.0,44302.0,0.62795643]
[1641413860871,0.05642224,44313.0,44302.0,0.57795643]
[1641413861079,0.00120321,44332.0,44309.0,0.2]
[1641413861274,1.17993903,44333.0,44315.0,1.157]
[1641413861275,0.3145022,44324.0,44315.0,1.157]
[1641413861577,0.93003903,44333.0,44328.0,0.52707889]
[1641413861774,0.93003903,44333.0,44329.0,1.157]
[1641413862378,0.2500015,44339.0,44322.0,0.31469267]
[1641413862575,0.2500015,44339.0,44318.0,0.00365362]
[1641413862778,0.05641,44330.0,44318.0,0.00365362]
[1641413863074,0.16925119,44323.0,44318.0,0.00365362]
[1641413863273,0.59207739,44322.0,44318.0,0.00365362]
[1641413864820,0.36732,44322.0,44318.0,0.00365362]
[1641413865029,0.48009196,44321.0,44318.0,0.00365362]
[1641413865224,2.61732,44319.0,44318.0,5.362e-05]
[1641413865423,0.41,44318.0,44291.0,0.8493364]
[1641413865627,0.05643853,44305.0,44291.0,0.8493364]
[1641413865829,0.13440064,44304.0,44293.0,1.46281681]
[1641413866024,0.21405632,44318.0,44303.0,2.54203848]
[1641413866227,0.21405632,44318.0,44304.0,0.2543382]
[1641413866423,0.21405632,44318.0,44303.0,3.69903848]
[1641413866622,0.21405632,44318.0,44304.0,0.36732]
[1641413866824,0.11283945,44324.0,44308.0,0.39248582]
[1641413867024,0.16271458,44325.0,44317.0,0.49280418]
[1641413867227,0.0001,44320.0,44318.0,1.157]
[1641413867425,0.0001,44330.0,44320.0,1.157]
[1641413867628,0.0001,44330.0,44329.0,1.75]
[1641413867882,0.0001,44330.0,44319.0,2.25]
[1641413868087,0.0001,44330.0,44324.0,0.55625071]
[1641413868283,0.0001,44330.0,44325.0,0.41732]
[1641413868482,0.0001,44330.0,44320.0,1.15828996]
[1641413868783,0.24847128,44335.0,44329.0,0.26903805]
[1641413868984,0.24847128,44335.0,44320.0,0.00128996]
[1641413869383,0.24847128,44335.0,44321.0,0.367223]
[1641413869582,0.21827689,44339.0,44332.0,0.55493815]
[1641413869783,0.0001,44340.0,44332.0,0.55493815]
[1641413869983,0.0001,44340.0,44326.0,0.00128412]
[1641413870385,0.0001,44340.0,44322.0,1.26828412]
[1641413870583,0.0001,44340.0,44323.0,0.41845185]
[1641413870783,0.0001,44340.0,44324.0,0.2960164]
[1641413870983,0.0001,44340.0,44325.0,0.57421594]
[1641413871632,0.0001,44340.0,44327.0,0.60662268]
[1641413871828,0.0001,44340.0,44327.0,1.76362268]
[1641413872023,0.0001,44340.0,44327.0,0.60662268]
[1641413872223,0.0001,44340.0,44326.0,0.60662268]
[1641413872424,0.056399,44339.0,44326.0,0.60662268]
[1641413872625,0.0001,44340.0,44326.0,0.60418268]
[1641413872833,0.00120068,44336.0,44326.0,0.60418268]
[1641413873025,0.0576686,44328.0,44326.0,0.41578268]
[1641413873227,2.26121212,44327.0,44326.0,0.41578268]
[1641413873424,2.31121212,44327.0,44326.0,0.41578268]
[1641413873625,2.46121212,44327.0,44326.0,0.41578268]
[1641413873828,0.55763012,44327.0,44312.0,1.75877592]
[1641413874026,0.05641364,44323.0,44312.0,1.75877592]
[1641413874225,0.19163561,44327.0,44313.0,0.367223]
[1641413874427,0.19163561,44327.0,44316.0,0.0012441]
[1641413874629,0.19163561,44327.0,44304.0,0.71766547]
[1641413874630,0.25345588,44326.0,44304.0,0.71766547]
[1641413874828,0.056432,44316.0,44304.0,0.71766547]
[1641413875027,0.0012319,44310.0,44304.0,0.71766547]
[1641413875372,0.0012319,44310.0,44295.0,0.2350785]
[1641413875570,0.0012319,44310.0,44302.0,0.2862038]
[1641413875769,0.212878,44311.0,44300.0,0.56727992]
[1641413875770,0.112878,44311.0,44300.0,0.56727992]
[1641413876070,0.112878,44311.0,44295.0,0.58085037]
[1641413876071,0.11287319,44307.0,44302.0,0.23592115]
[1641413876268,0.22320788,44306.0,44295.0,0.34447949]
[1641413876469,0.22320788,44306.0,44294.0,0.001227]
[1641413876667,0.22320788,44306.0,44291.0,0.00302]
[1641413876870,0.22320788,44306.0,44300.0,0.6622263]
[1641413877574,0.22320788,44306.0,44291.0,0.00302]
[1641413877575,0.056442,44304.0,44291.0,0.00302]
[1641413877773,0.27328181,44303.0,44291.0,0.00302]
[1641413877987,0.27328181,44303.0,44292.0,0.70448453]
[1641413878176,0.16935341,44298.0,44292.0,0.70338453]
[1641413878372,0.41810527,44297.0,44292.0,0.60227453]
[1641413878575,0.41810527,44297.0,44286.0,0.00033]
[1641413878576,2.0,44294.0,44286.0,0.00033]
[1641413878773,0.480161,44290.0,44285.0,0.00044]
[1641413878972,0.60560614,44289.0,44285.0,0.00044]
[1641413879228,0.33736741,44289.0,44285.0,0.00044]
[1641413879625,0.33736741,44289.0,44287.0,0.32925332]
[1641413879929,0.20446759,44296.0,44287.0,0.32925332]
[1641413880135,0.05644284,44300.0,44288.0,1.1562]
[1641413880328,0.11289461,44301.0,44289.0,0.367223]
[1641413880531,0.11289461,44301.0,44287.0,0.33050182]
[1641413880827,0.11289461,44301.0,44289.0,0.24223337]
[1641413880828,0.16933961,44301.0,44289.0,0.24223337]
[1641413881028,0.67724,44302.0,44289.0,0.24223337]
[1641413881227,0.67724,44302.0,44289.0,1.39923337]
[1641413881427,0.67724,44302.0,44288.0,0.00126634]
[1641413881628,0.9367802,44302.0,44287.0,0.32925332]
[1641413881828,0.9367802,44302.0,44281.0,0.00444]
[1641413881829,2.1,44299.0,44281.0,0.00444]
[1641413882029,0.056469,44291.0,44281.0,0.00444]
[1641413882229,0.05647,44287.0,44281.0,0.00444]
[1641413882429,0.367223,44286.0,44281.0,0.00444]
[1641413882628,0.467223,44286.0,44281.0,0.00444]
[1641413882877,0.567223,44286.0,44281.0,0.00444]
[1641413883084,0.367223,44286.0,44281.0,0.00444]
[1641413883280,0.00121719,44284.0,44281.0,0.00444]
[1641413883478,0.53338222,44283.0,44281.0,0.00444]
[1641413884280,1.18,44282.0,44279.0,0.00033]
[1641413884493,1.18,44282.0,44273.0,0.00022]
[1641413884494,2.207223,44278.0,44273.0,0.00022]
[1641413884683,2.207223,44278.0,44260.0,0.2702954]
[1641413884684,2.25,44273.0,44260.0,0.00033]
[1641413884881,0.05649312,44268.0,44263.0,0.00022]
[1641413885082,1.337223,44264.0,44263.0,0.00022]
[1641413885281,1.53594229,44264.0,44263.0,0.00022]
[1641413885482,0.00011,44262.0,44256.0,0.00033]
[1641413885697,0.00011,44262.0,44251.0,0.00433]
[1641413885698,0.367222,44258.0,44251.0,0.00433]
[1641413885881,0.05651393,44253.0,44250.0,0.00022]
[1641413886083,0.25436194,44251.0,44250.0,0.00022]
[1641413886382,0.155645,44247.0,44242.0,0.00044]
[1641413886634,0.155645,44247.0,44234.0,0.3126327]
[1641413886635,0.367566,44243.0,44236.0,0.00011]
[1641413886828,0.36877072,44239.0,44236.0,0.00011]
[1641413887022,0.417456,44237.0,44236.0,0.00011]
[1641413887223,0.417456,44237.0,44235.0,0.00033]
[1641413887224,0.417456,44237.0,44235.0,0.00022]
[1641413887425,0.367456,44236.0,44235.0,0.00022]
[1641413887623,0.367456,44236.0,44230.0,0.00011]
[1641413887826,2.3770696,44235.0,44223.0,0.00011]
[1641413888024,2.3770696,44235.0,44201.0,0.8618]
[1641413888025,0.55951332,44230.0,44201.0,0.424]
[1641413888230,0.55951332,44230.0,44222.0,0.00011]
[1641413888231,0.62381738,44229.0,44222.0,0.00011]
[1641413888423,0.367528,44225.0,44201.0,0.424]
[1641413888629,0.056551,44220.0,44208.0,0.56308287]
[1641413888826,0.367572,44216.0,44208.0,0.56308287]
[1641413889026,0.00113035,44215.0,44201.0,0.004]
[1641413889241,0.9,44214.0,44201.0,0.004]
[1641413889426,0.367703,44212.0,44201.0,0.004]
[1641413889630,0.056458,44206.0,44201.0,0.004]
[1641413889828,0.056458,44206.0,44200.0,0.65946911]
[1641413889829,0.87,44205.0,44200.0,0.65946911]
[1641413890035,0.00127713,44201.0,44200.0,0.65946911]
[1641413890229,0.00116713,44201.0,44192.0,0.54725597]
[1641413890492,0.16314757,44205.0,44199.0,0.2499]
[1641413890493,0.16817216,44200.0,44199.0,0.2499]
[1641413890693,0.05,44205.0,44199.0,0.2499]
[1641413890997,0.113042,44201.0,44199.0,0.2499]
[1641413891196,0.05657727,44197.0,44195.0,0.31746322]
[1641413891395,0.056466,44201.0,44192.0,0.54725597]
[1641413891595,0.05,44200.0,44192.0,0.54725597]
[1641413891795,0.05,44200.0,44189.0,0.00011]
[1641413891796,0.0376,44199.0,44189.0,0.00011]
[1641413891993,0.00124693,44190.0,44189.0,0.00011]
[1641413892195,0.00124693,44190.0,44183.0,0.00011]
[1641413892196,0.05660347,44189.0,44183.0,0.00011]
[1641413892401,0.05660347,44189.0,44167.0,0.28254345]
[1641413892402,2.34979,44184.0,44167.0,0.28254345]
[1641413892594,2.25,44179.0,44144.0,0.42]
[1641413892795,0.25466092,44175.0,44147.0,0.00011]
[1641413892995,2.32878,44179.0,44147.0,0.00011]
[1641413892996,0.0012879,44165.0,44147.0,0.00011]
[1641413893195,0.5,44161.0,44147.0,0.00011]
[1641413893398,0.99989,44156.0,44140.0,1.71454481]
[1641413893599,0.25606938,44156.0,44140.0,1.71454481]
[1641413893794,0.45009638,44156.0,44150.0,0.55016605]
[1641413893997,0.67872,44155.0,44150.0,0.55016605]
[1641413894235,0.113171,44157.0,44150.0,0.55016605]
[1641413894436,0.41831184,44168.0,44151.0,0.62418338]
[1641413894437,0.0578059,44165.0,44151.0,0.62418338]
[1641413894634,0.00123218,44175.0,44174.0,0.00011]
[1641413894828,0.368004,44175.0,44174.0,0.00011]
[1641413895028,0.36925795,44175.0,44174.0,0.00011]
[1641413895326,0.11322118,44178.0,44174.0,0.00011]
[1641413895525,0.11322118,44178.0,44171.0,0.00011]
[1641413895526,0.05660984,44178.0,44171.0,0.00011]
[1641413895727,0.367894,44177.0,44171.0,0.00011]
[1641413895926,0.05660984,44178.0,44171.0,0.00011]
[1641413896232,0.05649984,44178.0,44174.0,0.65440186]
[1641413896429,0.05638984,44178.0,44174.0,0.65440186]
[1641413896629,0.00181116,44180.0,44174.0,0.65440186]
[1641413896828,0.00170116,44180.0,44174.0,0.65440186]
[1641413897129,0.00170116,44180.0,44174.0,0.99290465]
[1641413897328,0.00159116,44180.0,44174.0,0.99290465]
[1641413897528,0.00148116,44180.0,44174.0,0.99290465]
[1641413897982,0.00137116,44180.0,44174.0,0.99290465]
[1641413898383,0.00137116,44180.0,44176.0,0.27590305]
[1641413898384,1.16e-06,44180.0,44176.0,0.27590305]
[1641413898590,0.060596,44189.0,44176.0,0.27590305]
[1641413898591,0.00372937,44189.0,44179.0,0.10120232]
[1641413898791,0.00529637,44199.0,44179.0,0.10120232]
[1641413898792,0.004,44199.0,44187.0,0.1]
[1641413898985,0.004,44199.0,44192.0,0.00128663]
[1641413899183,0.69741663,44209.0,44197.0,2.25]
[1641413899383,0.69741663,44209.0,44208.0,0.40455641]
[1641413899582,0.69741663,44209.0,44200.0,0.55126238]
[1641413899783,0.69741663,44209.0,44191.0,0.056547]
[1641413899784,0.27170282,44208.0,44177.0,0.15]
[1641413900084,0.27170282,44208.0,44186.0,0.00124822]
[1641413900285,0.27170282,44208.0,44179.0,0.52]
[1641413900286,0.00120647,44207.0,44187.0,0.00124166]
[1641413900483,0.00120647,44207.0,44191.0,0.29855147]
[1641413900686,0.00120647,44207.0,44195.0,0.45464161]
[1641413900882,0.00120647,44207.0,44187.0,0.00124166]
[1641413900883,0.00123184,44206.0,44187.0,0.00124166]
[1641413901088,0.00129287,44198.0,44179.0,0.52]
[1641413901288,0.00129287,44198.0,44180.0,0.367899]
[1641413901640,0.00129287,44198.0,44179.0,0.42]
[1641413901831,0.23280856,44190.0,44171.0,0.24369473]
[1641413902032,0.34598595,44196.0,44171.0,0.24369473]
[1641413902033,0.0012079,44188.0,44177.0,0.28779095]
[1641413902231,0.00123757,44197.0,44177.0,0.28779095]
[1641413902432,0.21641351,44192.0,44177.0,0.28779095]
[1641413902636,0.0999,44202.0,44181.0,0.00121011]
[1641413902834,0.00123184,44206.0,44182.0,0.367899]
[1641413903032,0.0999,44202.0,44194.0,0.58946542]
[1641413903231,0.056573,44205.0,44194.0,0.58946542]
[1641413903837,0.00123184,44206.0,44194.0,0.58946542]
[1641413903838,0.00123184,44206.0,44196.0,0.1]
[1641413904040,0.00123184,44206.0,44200.0,0.367899]
[1641413904236,0.00123184,44206.0,44204.0,0.367899]
[1641413904433,0.00123184,44206.0,44205.0,0.66993841]
[1641413904632,3.184e-05,44209.0,44208.0,1.817899]
[1641413904834,0.004,44219.0,44208.0,0.367899]
[1641413905032,0.367899,44218.0,44205.0,0.00122571]
[1641413905233,0.056558,44216.0,44200.0,0.42]
[1641413905479,0.004,44219.0,44209.0,0.00015251]
[1641413905678,0.367899,44218.0,44209.0,0.00015251]
[1641413905879,0.004,44219.0,44209.0,0.00015251]
[1641413906578,0.446547,44225.0,44214.0,0.2719494]
[1641413906785,0.3598283,44224.0,44209.0,0.00015251]
[1641413907079,0.446547,44225.0,44213.0,0.90396566]